fUST/lending_fUST_20240921
["ID","MTS","AMOUNT","RATE_DAILY","PERIOD"]
[338738423,1726903846693,-908.649052,0.0001485,2]
[338738424,1726903846703,-423.66723604,0.0001487,2]
[338738425,1726903846713,-2413.2,0.000149,2]
[338738426,1726903846722,-823.1701592,0.000149,2]
[338738427,1726903846732,-411.651906,0.000149,2]
[338738428,1726903846742,-411.651906,0.000149,2]
[338738429,1726903846752,-340.789496,0.000149,2]
[338738430,1726903846762,-340.789496,0.000149,2]
[338738431,1726903846772,-294.133419,0.000149,2]
[338738432,1726903846782,-294.133419,0.000149,2]
[338738433,1726903846792,-1430.099672,0.000149,2]
[338738434,1726903846802,-1430.099672,0.000149,2]
[338738435,1726903846812,-1391.962742,0.000149,2]
[338738436,1726903846822,-1391.962742,0.000149,2]
[338738437,1726903846832,-1164.640271,0.000149,2]
[338738438,1726903846842,-222.935091,0.000149,2]
[338738439,1726903846852,-1164.640271,0.000149,2]
[338738440,1726903846863,-222.935091,0.000149,2]
[338738441,1726903846874,-151.0,0.000149,2]
[338738442,1726903846887,-151.0,0.000149,2]
[338738443,1726903846898,-1043.994693,0.000149,2]
[338738444,1726903846908,-10316.0971946,0.0001496,2]
[338738445,1726903846921,-541.023795,0.00014961,2]
[338738446,1726903846932,-541.023795,0.00014961,2]
[338738447,1726903846943,-1285.419918,0.0001497,2]
[338738448,1726903846953,-1285.419918,0.0001497,2]
[338738449,1726903846963,-151.0,0.0001497,2]
[338738450,1726903846973,-151.0,0.0001497,2]
[338738451,1726903846983,-151.0,0.0001497,2]
[338738452,1726903846992,-2175.53523,0.0001497,2]
[338738453,1726903847003,-2175.53523,0.0001497,2]
[338738454,1726903847012,-151.0,0.0001499,2]
[338738455,1726903847022,-151.0,0.0001499,2]
[338738456,1726903847033,-151.0,0.0001499,2]
[338738457,1726903847044,-151.0,0.0001499,2]
[338738458,1726903847056,-175.060448,0.0001499,2]
[338738459,1726903847067,-175.060448,0.0001499,2]
[338738460,1726903847078,-797.234245,0.0001499,2]
[338738461,1726903847088,-151.0,0.0001499,2]
[338738462,1726903847100,-496.222771,0.0001499,2]
[338738463,1726903847111,-496.222771,0.0001499,2]
[338738464,1726903847122,-151.0,0.0001499,2]
[338738465,1726903847132,-151.0,0.0001499,2]
[338738466,1726903847143,-151.0,0.0001499,2]
[338738467,1726903847404,-208.465755,0.0001499,2]
[338738468,1726903847420,-208.465755,0.0001499,2]
[338738469,1726903847433,-366.71633,0.0001499,2]
[338738470,1726903847443,-366.71633,0.0001499,2]
[338738471,1726903847452,-292.951956,0.0001499,2]
[338738472,1726903847462,-10316.0971946,0.0001499,2]
[338738473,1726903847471,-208.586865,0.0001499,2]
[338738474,1726903847481,-208.586865,0.0001499,2]
[338738475,1726903847490,-908.649052,0.0001499,2]
[338738476,1726903847499,-908.649052,0.0001499,2]
[338738477,1726903847509,-1164.640271,0.0001499,2]
[338738478,1726903847519,-222.935091,0.0001499,2]
[338738479,1726903847529,-1164.640271,0.0001499,2]
[338738480,1726903847540,-222.935091,0.0001499,2]
[338738481,1726903847551,-151.0,0.0001499,2]
[338738482,1726903847561,-151.0,0.0001499,2]
[338738483,1726903847571,-1043.994693,0.0001499,2]
[338738484,1726903847581,-5355.9651926,0.00015,2]
[338738485,1726903847590,-1000.0,0.00015,15]
[338738486,1726903847603,-150.112233,0.00015,2]
[338738487,1726903847613,-150.112234,0.00015,2]
[338738488,1726903847622,-151.0,0.00015,2]
[338738489,1726903847631,-151.0,0.00015,2]
[338738490,1726903847640,-151.0,0.00015,2]
[338738491,1726903847649,-14002.08217502,0.00015,2]
[338738492,1726903847659,-154.164147,0.00015,2]
[338738493,1726903847668,-151.0,0.00015,2]
[338738494,1726903847677,-151.0,0.00015,2]
[338738495,1726903847686,-151.0,0.00015,2]
[338738496,1726903847696,-1700.158132,0.00015,2]
[338738497,1726903847705,-736.656616,0.00015,2]
[338738498,1726903847715,-736.656616,0.00015,2]
[338738499,1726903847725,-151.0,0.00015,2]
[338738500,1726903847734,-151.0,0.00015,2]
[338738501,1726903847743,-151.0,0.00015,2]
[338738502,1726903847752,-151.0,0.00015,2]
[338738503,1726903847762,-151.0,0.00015,2]
[338738504,1726903847772,-184.151997,0.00015,2]
[338738505,1726903847781,-184.151997,0.00015,2]
[338738506,1726903847791,-151.0,0.00015,2]
[338738507,1726903847800,-151.0,0.00015,2]
[338738508,1726903847811,-163.476886,0.00015,2]
[338738509,1726903847822,-163.476886,0.00015,2]
[338738510,1726903847833,-705.602606,0.00015,2]
[338738511,1726903847843,-705.602606,0.00015,2]
[338738512,1726903847852,-340.789496,0.00015,2]
[338738513,1726903847862,-340.789496,0.00015,2]
[338738514,1726903847871,-294.133419,0.00015,2]
[338738515,1726903847881,-294.133419,0.00015,2]
[338738516,1726903847891,-1430.099672,0.00015,2]
[338738517,1726903847900,-1430.099672,0.00015,2]
[338738518,1726903847910,-1391.962742,0.00015,2]
[338738519,1726903847920,-1391.962742,0.00015,2]
[338738520,1726903847931,-10316.0971946,0.00015049,2]
[338738521,1726903847943,-1285.419918,0.00015059,2]
[338738522,1726903847955,-1285.419918,0.00015059,2]
[338738523,1726903847964,-151.0,0.00015059,2]
[338738524,1726903847975,-151.0,0.00015059,2]
[338738525,1726903847987,-151.0,0.00015059,2]
[338738526,1726903847998,-2175.53523,0.00015059,2]
[338738527,1726903848010,-2175.53523,0.00015059,2]
[338738528,1726903848019,-151.0,0.00015068,2]
[338738529,1726903848029,-151.0,0.00015068,2]
[338738530,1726903848040,-151.0,0.00015068,2]
[338738531,1726903848049,-1352.671318,0.00015068,2]
[338738532,1726903848060,-151.0,0.0001509,2]
[338738533,1726903848071,-151.0,0.0001509,2]
[338738534,1726903848081,-175.060448,0.0001509,2]
[338738535,1726903848090,-175.060448,0.0001509,2]
[338738536,1726903848100,-797.234245,0.0001509,2]
[338738537,1726903848110,-151.0,0.0001509,2]
[338738538,1726903848120,-496.222771,0.0001509,2]
[338738539,1726903848130,-496.222771,0.0001509,2]
[338738540,1726903848139,-151.0,0.0001509,2]
[338738541,1726903848149,-10316.0971946,0.0001509,2]
[338738542,1726903848159,-541.023795,0.0001509,2]
[338738543,1726903848168,-541.023795,0.0001509,2]
[338738544,1726903848178,-42120.789053,0.000151,2]
[338738545,1726903848188,-151.0,0.000151,2]
[338738546,1726903848198,-150.112233,0.000151,2]
[338738547,1726903848209,-202.208641,0.000151,2]
[338738548,1726903848218,-202.208641,0.000151,2]
[338738549,1726903848228,-151.0,0.000151,2]
[338738550,1726903848239,-151.0,0.000151,2]
[338738551,1726903848248,-150.112233,0.000151,2]
[338738552,1726903848259,-151.0,0.000151,2]
[338738553,1726903848268,-151.0,0.000151,2]
[338738554,1726903848280,-151.0,0.000151,2]
[338738555,1726903848290,-151.0,0.000151,2]
[338738556,1726903848300,-1700.158132,0.000151,2]
[338738557,1726903848310,-152.282225,0.000151,2]
[338738558,1726903848321,-208.465755,0.000151,2]
[338738559,1726903848330,-208.465755,0.000151,2]
[338738560,1726903848340,-366.71633,0.000151,2]
[338738561,1726903848349,-366.71633,0.000151,2]
[338738562,1726903848359,-151.0,0.000151,2]
[338738563,1726903848369,-151.0,0.000151,2]
[338738564,1726903848378,-151.0,0.000151,2]
[338738565,1726903848387,-151.0,0.000151,2]
[338738566,1726903848397,-184.151997,0.000151,2]
[338738567,1726903848407,-184.151997,0.000151,2]
[338738568,1726903848417,-151.0,0.000151,2]
[338738569,1726903848426,-151.0,0.000151,2]
[338738570,1726903848436,-163.476886,0.000151,2]
[338738571,1726903848445,-163.476886,0.000151,2]
[338738572,1726903848454,-705.602606,0.000151,2]
[338738573,1726903848466,-705.602606,0.000151,2]
[338738574,1726903848476,-340.789496,0.000151,2]
[338738575,1726903848485,-340.789496,0.000151,2]
[338738576,1726903848495,-294.133419,0.000151,2]
[338738577,1726903848505,-294.133419,0.000151,2]
[338738578,1726903848515,-1430.099672,0.000151,2]
[338738579,1726903848524,-1430.099672,0.000151,2]
[338738580,1726903848535,-1391.962742,0.000151,2]
[338738581,1726903848546,-1391.962742,0.000151,2]
[338738582,1726903848555,-208.586865,0.000151,2]
[338738583,1726903848565,-208.586865,0.000151,2]
[338738584,1726903848574,-908.649052,0.000151,2]
[338738585,1726903848584,-908.649052,0.000151,2]
[338738586,1726903848594,-1164.640271,0.000151,2]
[338738587,1726903848606,-222.935091,0.000151,2]
[338738588,1726903848615,-1164.640271,0.000151,2]
[338738589,1726903848624,-222.935091,0.000151,2]
[338738590,1726903848634,-151.0,0.000151,2]
[338738591,1726903848643,-300.378602,0.000151,2]
[338738592,1726903848652,-1043.994693,0.000151,2]
[338738593,1726903848663,-8316.72578336,0.00015102,2]
[338738594,1726903848955,-500.0,0.00014287,2]
[338738595,1726903848966,-500.0,0.00014561,2]
[338738596,1726903848978,-1043.994693,0.00014845,2]
[338738597,1726903848989,-1043.994693,0.000149,2]
[338738598,1726903848998,-215.48117015,0.0001499,2]
[338738599,1726903879038,500.0,0.00010796,2]
[338738600,1726903880641,500.0,0.00013536,2]
[338738603,1726903934649,192.9383503,0.00014002,2]
[338738605,1726904034371,621.342098,0.00013699,2]
[338738606,1726904098930,178.251109,0.00013394,2]
[338738607,1726904099129,178.251109,0.00013411,2]
[338738608,1726904099556,178.251109,0.00013428,2]
[338738609,1726904099767,178.251109,0.00013445,2]
[338738610,1726904099970,178.251109,0.00013461,2]
[338738611,1726904149574,199.381298,0.00011781,2]
[338738612,1726904163583,1803.561759,0.00013699,2]
[338738615,1726904259737,3725.6975667,0.00013398,2]
[338738618,1726904439626,250.0,0.00013392,2]
[338738619,1726904439844,250.0,0.00013428,2]
[338738620,1726904440045,250.0,0.00013465,2]
[338738621,1726904440243,250.0,0.00013502,2]
[338738622,1726904440458,250.0,0.00013539,2]
[338738623,1726904440866,250.0,0.00013575,2]
[338738624,1726904441101,250.0,0.00013612,2]
[338738625,1726904441455,250.0,0.00013649,2]
[338738626,1726904441530,250.0,0.00013686,2]
[338738627,1726904441743,250.0,0.00013722,2]
[338738628,1726904441960,250.0,0.00013759,2]
[338738629,1726904442170,250.0,0.00013796,2]
[338738630,1726904442381,250.0,0.00013833,2]
[338738631,1726904442575,250.0,0.00013869,2]
[338738632,1726904442814,250.0,0.00013906,2]
[338738633,1726904443028,250.0,0.00013943,2]
[338738634,1726904443236,250.0,0.0001398,2]
[338738635,1726904443444,250.0,0.00014016,2]
[338738651,1726904660591,-250.0,0.00014053,2]
[338738652,1726904660625,-250.0,0.0001409,2]
[338738653,1726904660659,-367.49640971,0.00014187,2]
[338738654,1726904660672,-250.0,0.00014187,2]
[338738655,1726904660688,-250.0,0.00014187,2]
[338738656,1726904660700,-365.00718058,0.00014187,2]
[338738657,1726904660710,-300.0,0.00014284,2]
[338738658,1726904660720,-300.0,0.00014284,2]
[338738659,1726904660730,-267.49640971,0.00014284,2]
[338738661,1726904725721,310.671049,0.00013699,2]
[338738662,1726904752480,1653.264945,0.00013699,2]
[338738663,1726904794023,189.412233,0.00011781,2]
[338738667,1726904939346,1593.7296349,0.00013286,2]
[338738672,1726905034580,-336.75617874,0.00014185,2]
[338738737,1726905038473,-763.19972773,0.00014185,2]
[338738739,1726905038705,-300.0,0.00014283,2]
[338738742,1726905038716,-300.0,0.00014283,2]
[338738744,1726905038726,-548.10149986,0.00014284,2]
[338738746,1726905038736,-500.0,0.00014284,2]
[338738748,1726905038745,-608.09068544,0.00014284,2]
[338738750,1726905038755,-629.78,0.00014284,2]
[338738752,1726905038766,-500.0,0.00014284,2]
[338738754,1726905038775,-500.0,0.00014284,2]
[338738756,1726905038786,-500.0,0.00014284,2]
[338738758,1726905038795,-500.0,0.00014284,2]
[338738760,1726905038805,-500.0,0.00014284,2]
[338738762,1726905038815,-500.0,0.00014284,2]
[338738764,1726905038825,-500.0,0.00014284,2]
[338738766,1726905038835,-500.0,0.00014284,2]
[338738768,1726905038844,-506.6203096,0.00014284,2]
[338738770,1726905038854,-160.15423691,0.00014284,2]
[338738772,1726905038864,-503.62,0.00014284,2]
[338738774,1726905038874,-500.0,0.00014284,2]
[338738776,1726905038884,-500.0,0.00014284,2]
[338738778,1726905038902,-500.0,0.00014284,2]
[338738780,1726905038911,-500.0,0.00014284,2]
[338738782,1726905038921,-500.0,0.00014284,2]
[338738784,1726905038931,-500.0,0.00014284,2]
[338738786,1726905038940,-500.52878967,0.00014284,2]
[338738788,1726905038950,-500.0,0.00014284,2]
[338738790,1726905038959,-460.35283347,0.00014284,2]
[338738792,1726905038969,-500.0,0.00014284,2]
[338738794,1726905038978,-500.0,0.00014284,2]
[338738796,1726905038988,-500.0,0.00014284,2]
[338738798,1726905038998,-500.0,0.00014284,2]
[338738800,1726905039009,-500.0,0.00014284,2]
[338738802,1726905039018,-500.0,0.00014284,2]
[338738805,1726905039028,-500.0,0.00014284,2]
[338738807,1726905039038,-230.78220311,0.00014284,2]
[338738809,1726905039049,-500.0,0.00014284,2]
[338738811,1726905039059,-500.0,0.00014284,2]
[338738813,1726905039069,-500.0,0.00014284,2]
[338738815,1726905039079,-500.0,0.00014284,2]
[338738817,1726905039094,-500.0,0.00014284,2]
[338738819,1726905039106,-462.10035752,0.00014284,2]
[338738821,1726905039117,-500.0,0.00014284,2]
[338738823,1726905039126,-500.0,0.00014284,2]
[338738825,1726905039136,-500.0,0.00014284,2]
[338738827,1726905039147,-500.0,0.00014284,2]
[338738829,1726905039156,-500.0,0.00014284,2]
[338738831,1726905039166,-500.0,0.00014284,2]
[338738833,1726905039175,-500.0,0.00014284,2]
[338738835,1726905039185,-855.86,0.00014284,2]
[338738837,1726905039195,-500.0,0.00014284,2]
[338738839,1726905039205,-337.17846631,0.00014284,2]
[338738841,1726905039216,-500.0,0.00014284,2]
[338738843,1726905039226,-500.0,0.00014284,2]
[338738845,1726905039235,-500.0,0.00014284,2]
[338738847,1726905039245,-500.0,0.00014284,2]
[338738849,1726905039255,-873.0,0.00014284,2]
[338738852,1726905039266,-400.4723907,0.00014284,2]
[338738854,1726905039277,-527.74,0.00014284,2]
[338738856,1726905039286,-500.0,0.00014284,2]
[338738858,1726905039295,-500.0,0.00014284,2]
[338738860,1726905039305,-500.0,0.00014284,2]
[338738862,1726905039314,-500.0,0.00014284,2]
[338738864,1726905039324,-500.0,0.00014284,2]
[338738866,1726905039333,-500.0,0.00014284,2]
[338738868,1726905039344,-500.0,0.00014284,2]
[338738870,1726905039354,-501.28438188,0.00014284,2]
[338738872,1726905039363,-500.0,0.00014284,2]
[338738874,1726905039373,-16706.89,0.00014284,2]
[338738876,1726905039382,-500.0,0.00014284,2]
[338738878,1726905039394,-2394.64,0.00014284,2]
[338738880,1726905039404,-500.0,0.00014284,2]
[338738882,1726905039413,-579.14,0.00014285,2]
[338738884,1726905039423,-993.44,0.00014285,2]
[338738886,1726905039432,-500.0,0.00014285,2]
[338738888,1726905039441,-912.71,0.00014285,2]
[338738890,1726905039450,-500.0,0.00014285,2]
[338738892,1726905039461,-500.0,0.00014285,2]
[338738894,1726905039471,-500.0,0.00014285,2]
[338738896,1726905039483,-500.0,0.00014285,2]
[338738898,1726905039493,-500.0,0.00014285,2]
[338738900,1726905039503,-500.0,0.00014285,2]
[338738902,1726905039512,-517.93,0.00014285,2]
[338738904,1726905039521,-500.0,0.00014285,2]
[338738906,1726905039531,-500.0,0.00014285,2]
[338738908,1726905039542,-500.0,0.00014285,2]
[338738910,1726905039552,-500.0,0.00014285,2]
[338738912,1726905039561,-500.0,0.00014285,2]
[338738914,1726905039571,-500.0,0.00014285,2]
[338738916,1726905039581,-500.0,0.00014285,2]
[338738918,1726905039591,-500.0,0.00014285,2]
[338738920,1726905039600,-500.0,0.00014285,2]
[338738922,1726905039609,-500.0,0.00014285,2]
[338738924,1726905039619,-500.0,0.00014285,2]
[338738926,1726905039629,-500.0,0.00014285,2]
[338738928,1726905039640,-1923.46,0.00014285,2]
[338738931,1726905039649,-500.0,0.00014285,2]
[338738933,1726905039659,-500.0,0.00014285,2]
[338738935,1726905039668,-500.0,0.00014285,2]
[338738937,1726905039678,-500.0,0.00014285,2]
[338738938,1726905039687,-512.71212299,0.00014285,2]
[338738941,1726905039698,-500.0,0.00014285,2]
[338738942,1726905039707,-500.0,0.00014285,2]
[338738944,1726905039716,-500.0,0.00014285,2]
[338738946,1726905039726,-500.0,0.00014285,2]
[338738948,1726905039736,-727.21,0.00014285,2]
[338738950,1726905039745,-500.0,0.00014285,2]
[338738952,1726905039754,-500.0,0.00014285,2]
[338738954,1726905039764,-500.0,0.00014287,2]
[338738956,1726905039773,-648.86184512,0.00014287,2]
[338738958,1726905039784,-500.0,0.00014287,2]
[338738960,1726905039794,-500.0,0.00014287,2]
[338738962,1726905039803,-500.0,0.00014287,2]
[338738964,1726905039813,-520.0,0.00014287,2]
[338738967,1726905039822,-500.0,0.00014287,2]
[338738970,1726905039832,-501.9642815,0.00014287,2]
[338738972,1726905039841,-500.0,0.00014287,2]
[338738974,1726905039851,-500.0,0.00014287,2]
[338738976,1726905039860,-624.31,0.00014287,2]
[338738978,1726905039869,-500.0,0.00014287,2]
[338738980,1726905039879,-504.49573986,0.00014287,2]
[338738981,1726905039889,-500.0,0.00014287,2]
[338738983,1726905039898,-500.0,0.00014287,2]
[338738986,1726905039909,-500.0,0.00014287,2]
[338738988,1726905039920,-599.90742919,0.00014287,2]
[338738990,1726905039931,-500.0,0.00014287,2]
[338738991,1726905039940,-500.0,0.00014287,2]
[338738994,1726905039950,-500.0,0.00014287,2]
[338738996,1726905039960,-500.0,0.00014287,2]
[338738998,1726905039971,-500.0,0.00014287,2]
[338739000,1726905039981,-993.8,0.00014287,2]
[338739002,1726905039993,-500.0,0.00014287,2]
[338739004,1726905040004,-200.0,0.00014287,2]
[338739006,1726905040014,-500.0,0.00014287,2]
[338739008,1726905040024,-500.0,0.00014287,2]
[338739010,1726905040037,-500.0,0.00014287,2]
[338739012,1726905040046,-500.0,0.00014287,2]
[338739014,1726905040056,-500.0,0.00014287,2]
[338739016,1726905040065,-500.0,0.00014287,2]
[338739018,1726905040074,-528.21,0.00014287,2]
[338739020,1726905040084,-500.0,0.00014287,2]
[338739021,1726905040096,-500.0,0.00014287,2]
[338739023,1726905040106,-561.56,0.00014287,2]
[338739025,1726905040115,-503.69,0.00014287,2]
[338739027,1726905040124,-500.0,0.00014287,2]
[338739029,1726905040135,-523.64,0.00014287,2]
[338739031,1726905040146,-515.13,0.00014287,2]
[338739033,1726905040155,-500.0,0.00014287,2]
[338739035,1726905040166,-500.0,0.00014287,2]
[338739037,1726905040177,-500.0,0.00014287,2]
[338739039,1726905040187,-500.0,0.00014287,2]
[338739041,1726905040197,-727.78,0.00014287,2]
[338739043,1726905040207,-500.0,0.00014287,2]
[338739045,1726905040217,-500.0,0.00014287,2]
[338739047,1726905040226,-500.0,0.00014287,2]
[338739049,1726905040236,-500.0,0.00014287,2]
[338739051,1726905040246,-500.0,0.00014287,2]
[338739053,1726905040256,-500.0,0.00014287,2]
[338739055,1726905040266,-500.0,0.00014287,2]
[338739057,1726905040276,-513.24407418,0.00014287,2]
[338739059,1726905040285,-500.0,0.00014287,2]
[338739061,1726905040294,-500.0,0.00014287,2]
[338739063,1726905040306,-468.02,0.00014287,2]
[338739065,1726905040316,-500.0,0.00014287,2]
[338739067,1726905040327,-500.0,0.00014287,2]
[338739069,1726905040337,-500.0,0.00014287,2]
[338739071,1726905040349,-169.32233652,0.00014287,2]
[338739074,1726905040362,-500.0,0.00014287,2]
[338739076,1726905040371,-500.0,0.00014287,2]
[338739077,1726905040380,-500.0,0.00014287,2]
[338739079,1726905040391,-505.18049513,0.00014287,2]
[338739081,1726905040400,-500.0,0.00014287,2]
[338739083,1726905040410,-500.0,0.00014287,2]
[338739085,1726905040420,-500.0,0.00014287,2]
[338739087,1726905040430,-1527.8,0.00014287,2]
[338739089,1726905040439,-500.0,0.00014287,2]
[338739091,1726905040449,-500.0,0.00014287,2]
[338739093,1726905040458,-500.0,0.00014287,2]
[338739095,1726905040468,-500.0,0.00014287,2]
[338739097,1726905040477,-500.0,0.00014287,2]
[338739099,1726905040488,-500.0,0.00014287,2]
[338739100,1726905040499,-500.0,0.00014289,2]
[338739102,1726905040508,-500.0,0.00014289,2]
[338739104,1726905040518,-500.0,0.00014297,2]
[338739106,1726905040528,-338.93378884,0.000143,2]
[338739108,1726905040538,-49312.5711044,0.00014374,2]
[338739110,1726905040548,-5773.8220276,0.00014374,2]
[338739112,1726905040557,-49312.5711044,0.0001438,2]
[338739114,1726905040567,-5773.8220276,0.0001438,2]
[338739116,1726905040579,-1653.264945,0.00014384,2]
[338739118,1726905040590,-42120.78905,0.000144,2]
[338739120,1726905040599,-950.41680686,0.00014462,2]
[338739122,1726905040608,-338.93378883,0.00014471,2]
[338739124,1726905040618,-49312.5711044,0.0001449,2]
[338739126,1726905040628,-5773.8220276,0.0001449,2]
[338739128,1726905040637,-5000.0,0.000145,2]
[338739131,1726905040648,-500.0,0.0001453,2]
[338739132,1726905040657,-500.0,0.0001453,2]
[338739134,1726905040666,-618.36678515,0.0001453,2]
[338739136,1726905040676,-500.0,0.0001453,2]
[338739138,1726905040685,-368.3802166,0.0001453,2]
[338739140,1726905040694,-500.0,0.0001453,2]
[338739142,1726905040703,-500.0,0.0001453,2]
[338739144,1726905040713,-500.0,0.0001453,2]
[338739146,1726905040723,-500.0,0.0001453,2]
[338739149,1726905040732,-500.0,0.0001453,2]
[338739151,1726905040742,-500.0,0.0001453,2]
[338739153,1726905040751,-500.0,0.0001453,2]
[338739155,1726905040761,-500.0,0.0001453,2]
[338739157,1726905040770,-425.63159022,0.0001453,2]
[338739159,1726905040779,-500.0,0.0001453,2]
[338739161,1726905040789,-49312.5711044,0.00014531,2]
[338739163,1726905040799,-5773.8220276,0.00014531,2]
[338739165,1726905040808,-151.0,0.00014541,2]
[338739167,1726905040817,-151.0,0.00014541,2]
[338739169,1726905040826,-1700.158132,0.00014541,2]
[338739171,1726905040835,-1700.158132,0.00014541,2]
[338739172,1726905040844,-175.060448,0.00014541,2]
[338739173,1726905040854,-175.060448,0.00014541,2]
[338739174,1726905040863,-163.476886,0.00014541,2]
[338739175,1726905040872,-503.680292,0.00014541,2]
[338739176,1726905040882,-503.680292,0.00014541,2]
[338739177,1726905040892,-163.476886,0.00014541,2]
[338739178,1726905040901,-151.0,0.00014541,2]
[338739179,1726905040911,-49312.5711044,0.00014541,2]
[338739180,1726905040920,-5773.8220276,0.00014541,2]
[338739181,1726905040930,-444.6142648,0.00014548,2]
[338739182,1726905040939,-500.0,0.00014548,2]
[338739183,1726905040948,-179.55963272,0.00014548,2]
[338739184,1726905040957,-500.0,0.00014548,2]
[338739185,1726905040967,-500.0,0.00014548,2]
[338739186,1726905040976,-500.0,0.00014548,2]
[338739187,1726905040985,-500.0,0.00014548,2]
[338739188,1726905040994,-571.47117515,0.00014548,2]
[338739189,1726905041006,-500.0,0.00014548,2]
[338739190,1726905041015,-500.0,0.00014548,2]
[338739191,1726905041025,-500.0,0.00014548,2]
[338739192,1726905041035,-610.91501293,0.00014548,2]
[338739193,1726905041044,-500.0,0.00014548,2]
[338739194,1726905041053,-571.11228861,0.00014548,2]
[338739195,1726905041062,-500.0,0.00014548,2]
[338739196,1726905041071,-500.0,0.00014548,2]
[338739197,1726905041081,-500.0,0.00014548,2]
[338739198,1726905041096,-500.0,0.00014548,2]
[338739199,1726905041107,-500.0,0.00014548,2]
[338739200,1726905041116,-500.0,0.00014548,2]
[338739201,1726905041126,-500.0,0.00014548,2]
[338739202,1726905041135,-500.0,0.00014548,2]
[338739203,1726905041145,-49312.5711044,0.00014549,2]
[338739204,1726905041155,-5773.8220276,0.00014549,2]
[338739205,1726905041164,-157.60850622,0.00014551,2]
[338739207,1726905041173,-151.444762,0.00014551,2]
[338739213,1726905041216,-166.869492,0.00014551,2]
[338739215,1726905041227,-166.869492,0.00014551,2]
[338739217,1726905041237,-155.184983,0.00014551,2]
[338739219,1726905041247,-235.306736,0.00014551,2]
[338739221,1726905041257,-235.306736,0.00014551,2]
[338739223,1726905041266,-151.0,0.00014551,2]
[338739225,1726905041276,-151.0,0.00014551,2]
[338739227,1726905041286,-151.0,0.00014551,2]
[338739229,1726905041296,-151.523071,0.00014551,2]
[338739231,1726905041305,-178.348073,0.00014551,2]
[338739233,1726905041316,-178.348073,0.00014551,2]
[338739236,1726905041326,-726.919242,0.00014551,2]
[338739237,1726905041335,-726.919242,0.00014551,2]
[338739240,1726905041346,-151.0,0.00014551,2]
[338739242,1726905041355,-151.0,0.00014551,2]
[338739244,1726905041365,-151.0,0.00014551,2]
[338739246,1726905041374,-797.234245,0.00014551,2]
[338739248,1726905041385,-151.0,0.00014551,2]
[338739250,1726905041395,-797.234245,0.00014551,2]
[338739252,1726905041405,-151.0,0.00014551,2]
[338739254,1726905041414,-541.023795,0.00014551,2]
[338739256,1726905041424,-541.023795,0.00014551,2]
[338739258,1726905041433,-5773.8220276,0.00014551,2]
[338739260,1726905041442,-151.257543,0.00014554,2]
[338739262,1726905041451,-431.816928,0.00014554,2]
[338739264,1726905041461,-431.816928,0.00014554,2]
[338739266,1726905041470,-500.0,0.00014558,2]
[338739268,1726905041479,-629.78,0.00014558,2]
[338739270,1726905041488,-192.44832327,0.00014558,2]